bitfinex-derivatives/quotes_ETHF0:USTF0_20260119
["timestamp","ask_amount","ask_price","bid_price","bid_amount"]
[1768835221219,0.13332592,3217.5,3216.2,0.15554]
[1768835222520,0.1417869,3217.2,3216.2,0.15554]
[1768835227524,0.1417869,3217.2,3215.8,0.00263875]
[1768835227718,0.1417869,3217.2,3215.8,0.15819875]
[1768835228425,0.1417869,3217.2,3215.9,0.15556]
[1768835228617,0.1417869,3217.2,3216.0,0.15555]
[1768835237027,0.1417869,3216.8,3215.8,0.00263875]
[1768835237223,0.1417869,3216.8,3215.4,0.15558]
[1768835238030,1.28932913,3216.4,3215.4,0.15558]
[1768835238229,1.29183822,3216.4,3215.4,0.15882983]
[1768835239430,0.00250909,3216.4,3215.4,0.15882983]
[1768835245024,0.00250909,3216.4,3215.5,0.15558]
[1768835251743,0.00250909,3216.4,3215.5,0.18049816]
[1768835257946,0.00250909,3216.4,3215.5,0.15558]
[1768835260146,0.00250909,3216.4,3215.6,0.02346232]
[1768835262248,1.11163423,3217.8,3216.4,0.02095323]
[1768835262453,3.111,3218.2,3216.7,0.0210924]
[1768835262645,0.88007945,3218.1,3216.9,0.0210924]
[1768835262950,1.11163423,3218.6,3216.9,0.0210924]
[1768835263148,1.24861718,3218.6,3216.9,0.0210924]
[1768835263340,0.88005034,3218.5,3216.9,0.0210924]
[1768835263545,1.42308642,3218.4,3216.9,0.0210924]
[1768835263752,1.01380763,3218.3,3216.8,0.15551]
[1768835264044,0.88005034,3218.2,3216.8,0.15551]
[1768835264250,0.13375729,3218.3,3216.8,0.1766024]
[1768835264447,0.00322566,3218.6,3216.9,0.01715885]
[1768835264746,0.87864313,3218.5,3216.9,0.01715885]
[1768835264936,0.00322566,3218.6,3216.9,0.01715885]
[1768835264937,0.87864313,3218.4,3216.9,0.17266885]
[1768835265137,0.13698295,3218.6,3216.9,0.17266885]
[1768835265444,0.87860726,3218.5,3216.9,0.17266885]
[1768835265644,0.13698295,3218.6,3216.9,0.17266885]
[1768835265849,0.87802154,3218.5,3216.9,0.17266885]
[1768835266051,0.13698295,3218.6,3216.9,0.17266885]
[1768835266253,0.87802732,3218.5,3216.9,0.17266885]
[1768835266447,0.13698295,3218.6,3217.0,0.1555]
[1768835266652,0.13698295,3218.6,3217.0,0.17103133]
[1768835266843,0.00322566,3218.6,3217.1,0.01553133]
[1768835267044,0.00322566,3218.6,3217.4,0.15548]
[1768835267451,0.00322566,3218.6,3217.5,0.15548]
[1768835267753,0.00322566,3218.6,3217.5,0.17101133]
[1768835268146,0.00322566,3218.6,3217.5,0.15548]
[1768835270954,0.13698295,3218.6,3217.5,0.15548]
[1768835274161,0.13698295,3218.6,3216.9,0.01364453]
[1768835274458,0.13698295,3218.6,3217.0,0.1555]
[1768835274760,0.13219918,3218.4,3217.0,0.1555]
[1768835275550,1.28932913,3218.1,3217.0,0.1555]
[1768835278362,1.42152831,3218.1,3217.0,0.1555]
[1768835280365,1.28932913,3217.7,3216.3,0.15554]
[1768835280559,1.42152831,3217.7,3216.3,0.15554]
[1768835280961,1.28948799,3217.4,3216.4,0.15553]
[1768835281370,1.28948799,3217.6,3216.5,0.15553]
[1768835281563,1.28948799,3217.8,3216.6,0.15552]
[1768835281864,1.28948799,3218.3,3216.9,0.15551]
[1768835282160,0.13219918,3218.5,3217.2,1.44497799]
[1768835282359,1.28948799,3218.4,3217.2,0.15549]
[1768835283167,1.28948799,3218.4,3217.3,0.15549]
[1768835283464,0.13219918,3218.5,3217.3,0.15549]
[1768835283861,0.13219918,3218.5,3217.2,1.28948799]
[1768835284067,1.29271365,3218.6,3217.2,1.28948799]
[1768835285662,1.29271365,3218.6,3217.5,0.15548]
[1768835289062,1.28948799,3218.5,3217.5,0.15548]
[1768835289774,1.28948799,3218.3,3217.5,0.15548]
[1768835291365,1.42168717,3218.5,3217.5,0.15548]
[1768835293875,1.28948799,3218.1,3217.5,0.15548]
[1768835295163,1.28948799,3218.3,3217.5,0.15548]
[1768835296167,1.28948799,3218.5,3217.7,0.15547]
[1768835296372,0.00322566,3218.6,3217.7,0.15927799]
[1768835303778,1.29271365,3218.6,3217.7,0.15927799]
[1768835308578,1.42892933,3218.6,3217.7,0.15927799]
[1768835308770,0.13621568,3218.5,3217.7,0.15927799]
[1768835309278,0.00322566,3218.6,3217.7,0.15927799]
[1768835313775,1.28948799,3218.5,3217.7,0.15927799]
[1768835314574,1.29271365,3218.6,3217.7,0.15927799]
[1768835316181,0.00322566,3218.6,3217.7,0.15927799]
[1768835322385,0.00322566,3218.6,3217.8,0.15547]
[1768835326890,1.28948799,3218.1,3217.7,0.00380799]
[1768835327092,1.28948799,3218.3,3217.7,0.00380799]
[1768835327279,1.28948799,3218.5,3217.7,0.00380799]
[1768835328589,1.28948799,3218.5,3217.8,0.15547]
[1768835329191,1.42904901,3218.5,3217.8,0.15547]
[1768835329392,1.42904901,3218.3,3217.7,0.00380799]
[1768835330492,1.42904901,3218.3,3217.2,0.15549]
[1768835331191,1.28948799,3218.1,3217.2,0.15549]
[1768835331388,1.28948799,3218.1,3217.2,0.15847371]
[1768835332688,1.28948799,3217.9,3217.2,0.15847371]
[1768835333090,1.42904901,3218.1,3217.2,0.15847371]
[1768835335090,0.13694018,3218.5,3217.3,0.15549]
[1768835337105,1.29271365,3218.6,3217.8,0.15546]
[1768835337106,0.00322566,3218.6,3217.8,0.15546]
[1768835337301,0.00322566,3218.6,3217.9,0.15546]
[1768835348015,1.42530673,3218.1,3217.3,0.15549]
[1768835348305,0.13694018,3218.1,3217.3,0.15549]
[1768835348712,0.13694018,3218.1,3217.2,0.00298371]
[1768835357225,0.13694018,3218.1,3217.2,0.15847371]
[1768835357815,0.13694018,3218.5,3217.3,0.15549]
[1768835361528,0.00322566,3218.6,3216.4,2.364]
[1768835361529,0.13694018,3217.9,3216.4,2.364]
[1768835362433,0.13694018,3217.9,3216.9,0.15551]
[1768835362627,0.13694018,3217.5,3216.4,0.00388915]
[1768835363723,0.13694018,3217.5,3216.5,0.15553]
[1768835372332,0.13719052,3218.0,3216.6,0.15552]
[1768835373537,0.13719052,3218.0,3216.7,0.15552]
[1768835376331,1.01519859,3217.9,3216.7,0.15552]
[1768835376631,0.13719052,3217.9,3216.7,0.15552]
[1768835377237,0.13719052,3217.9,3216.8,0.15551]
[1768835378735,1.42555707,3218.3,3216.8,0.15551]
[1768835379040,0.87829591,3218.2,3216.9,0.15551]
[1768835379240,0.87829591,3218.1,3216.9,0.15551]
[1768835379431,1.42555707,3218.3,3216.9,0.15551]
[1768835379631,0.87834461,3218.2,3216.9,0.15551]
[1768835379831,0.87834461,3218.1,3216.9,0.15551]
[1768835380037,1.42555707,3218.3,3216.9,0.15551]
[1768835380240,1.02142917,3218.2,3216.9,0.15551]
[1768835380432,0.87834461,3218.1,3216.9,0.15551]
[1768835382132,0.14308456,3218.0,3216.9,0.15551]
[1768835382934,0.14308456,3217.8,3216.9,0.15551]
[1768835390546,1.11485989,3218.6,3216.8,0.01109364]
[1768835390747,0.88048102,3218.5,3216.9,0.01109364]
[1768835390941,0.00322566,3218.6,3217.5,0.15548]
[1768835391136,0.00322566,3218.6,3217.3,0.01109364]
[1768835392649,0.00322566,3218.6,3217.7,0.15547]
[1768835400847,0.00322566,3218.6,3217.8,0.17323682]
[1768835401346,0.00322566,3218.6,3217.8,0.15546]
[1768835401747,0.00322566,3218.6,3217.8,0.17323682]
[1768835403157,0.00322566,3218.6,3217.8,0.15546]
[1768835407462,0.00466099,3218.5,3217.8,0.15546]
[1768835407655,1.29292979,3218.5,3217.8,0.15546]
[1768835408055,0.00466099,3218.5,3217.8,0.15546]
[1768835408563,0.00466099,3218.5,3217.0,2.369]
[1768835408564,0.00466099,3218.5,3218.1,0.01494381]
[1768835408765,1.2882688,3219.0,3218.1,0.01494381]
[1768835409064,1.2882688,3219.0,3217.8,0.00466099]
[1768835409668,1.29221089,3219.0,3218.1,0.15545]
[1768835410265,1.2882688,3218.8,3218.1,0.15545]
[1768835412560,0.00394209,3219.0,3218.1,0.15545]
[1768835413359,0.00394209,3219.0,3218.5,1.2882688]
[1768835413555,1.2882688,3219.9,3218.5,1.4436988]
[1768835414158,1.2882688,3219.7,3218.5,1.4436988]
[1768835414357,1.2882688,3219.7,3218.5,1.45612072]
[1768835414666,1.29221372,3219.7,3218.5,0.16785192]
[1768835416457,0.00394492,3219.7,3218.5,0.16785192]
[1768835416664,1.2882688,3219.6,3218.5,0.16785192]
[1768835417864,0.00394492,3219.7,3218.6,0.15543]
[1768835418765,0.00394492,3219.7,3218.6,0.01773007]
[1768835418969,0.00394492,3219.7,3218.8,0.01773007]
[1768835419169,0.00394492,3219.7,3218.8,0.02028841]
[1768835419968,1.29221372,3219.7,3218.8,0.02028841]
[1768835420267,1.2882688,3219.5,3218.8,0.00255834]
[1768835420669,1.29221372,3219.7,3219.0,0.15541]
[1768835422770,1.2882688,3219.5,3219.0,0.15541]
[1768835422969,1.2882688,3219.3,3218.4,0.15544]
[1768835423164,0.00394492,3219.7,3218.4,0.15544]
[1768835423372,1.2882688,3219.2,3218.4,0.15544]
[1768835424073,1.2882688,3219.2,3218.4,0.15825878]
[1768835427885,0.14629854,3219.7,3218.5,0.15543]
[1768835428086,1.2882688,3219.4,3218.5,0.15543]
[1768835429585,0.14629854,3219.7,3218.7,0.15542]
[1768835429790,1.2882688,3219.6,3218.7,0.15542]
[1768835430288,1.2882688,3219.4,3218.7,0.15542]
[1768835430874,1.2882688,3219.2,3218.7,0.15542]
[1768835432079,1.2882688,3219.0,3218.4,0.00281878]
[1768835432275,1.2882688,3218.8,3218.4,0.00281878]
[1768835433280,1.2882688,3218.8,3218.2,0.15545]
[1768835434280,1.2882688,3218.8,3218.2,0.15913052]
[1768835434886,1.2882688,3218.3,3217.8,0.00466099]
[1768835435087,1.2882688,3218.5,3217.8,0.00466099]
[1768835435881,1.2882688,3218.5,3217.8,0.00854861]
[1768835436891,1.2882688,3218.3,3217.8,0.00854861]
[1768835437191,1.2882688,3218.3,3217.6,0.15547]
[1768835437380,1.2882688,3218.1,3217.1,2.412]
[1768835437696,1.2882688,3218.1,3217.1,2.5675]
[1768835437987,1.2882688,3218.1,3217.1,2.56978251]
[1768835438690,1.2882688,3217.7,3217.1,0.15778251]
[1768835438989,1.2882688,3217.9,3217.1,0.15778251]
[1768835440785,1.2882688,3217.7,3217.1,0.15778251]
[1768835441396,1.2882688,3217.9,3217.1,0.15778251]
[1768835442991,1.2882688,3217.7,3217.1,0.15778251]
[1768835443792,1.2882688,3217.7,3216.5,2.415]
[1768835444395,1.2882688,3217.9,3216.5,3.7032688]
[1768835444592,1.2882688,3218.1,3217.1,0.1555]
[1768835444795,1.2882688,3218.1,3217.1,0.15858084]
[1768835448202,1.43068226,3218.3,3217.2,0.15549]
[1768835448398,1.29292979,3218.5,3217.2,0.15549]
[1768835448600,0.00466099,3218.5,3217.5,1.2882688]
[1768835449203,0.00466099,3218.5,3217.5,0.15548]
[1768835450706,0.00466099,3218.5,3217.3,1.2882688]
[1768835450707,0.00466099,3218.5,3217.6,0.15548]
[1768835456007,1.29292979,3218.5,3217.6,0.15548]
[1768835456915,1.2882688,3218.3,3217.6,0.15548]
[1768835457717,0.14236327,3218.5,3217.6,0.15548]
[1768835458821,1.43063207,3218.5,3217.6,0.15548]
[1768835459211,0.13770228,3218.2,3217.6,0.15548]
[1768835459413,0.13770228,3218.0,3217.6,0.15548]
[1768835459810,1.2882688,3218.1,3217.6,0.15548]
[1768835460310,1.2882688,3218.3,3217.6,0.15548]
[1768835460515,0.13770228,3218.2,3217.6,0.15548]
[1768835462910,1.2882688,3218.1,3217.1,0.00308084]
[1768835463210,1.2882688,3218.1,3217.1,0.15858084]
[1768835463411,0.13770228,3218.0,3217.1,0.15858084]
[1768835463613,1.42597108,3217.5,3216.5,3.90826073]
[1768835463814,0.13770228,3217.5,3216.6,0.15552]
[1768835464218,1.2882688,3217.8,3216.8,0.15551]
[1768835464719,1.2882688,3217.8,3216.8,0.15813949]
[1768835464918,0.13770228,3217.9,3216.8,0.15813949]
[1768835469324,0.13770228,3217.8,3216.8,0.15813949]
[1768835486934,0.13770228,3217.8,3216.9,0.15551]
[1768835493829,0.13770228,3217.8,3217.1,0.1555]
[1768835500840,0.1370781,3218.3,3217.1,0.1555]
[1768835501145,0.00466099,3218.5,3217.1,0.1555]
[1768835501146,0.1370781,3218.1,3217.1,0.1555]
[1768835515859,0.14333209,3218.5,3217.2,0.15549]
[1768835516058,0.88129451,3218.4,3217.2,0.15549]
[1768835516261,0.88129451,3218.3,3217.2,0.15549]
[1768835516458,0.14333209,3218.5,3217.2,0.15549]
[1768835516659,0.1386711,3218.3,3217.2,0.15549]
[1768835517564,0.1386711,3218.0,3216.8,0.00262949]
[1768835520566,0.1386711,3218.0,3216.9,0.15551]
[1768835521558,0.1386711,3218.0,3217.0,0.1555]
[1768835524963,1.42765488,3218.0,3217.0,0.1555]
[1768835525768,1.28898378,3217.8,3217.0,0.1555]
[1768835525970,1.42765488,3217.6,3217.0,0.1555]
[1768835529066,0.1386711,3217.6,3217.0,0.1555]
[1768835530671,0.1386711,3217.6,3216.8,0.00262949]
[1768835530876,0.1386711,3217.1,3216.5,0.15553]
[1768835531975,0.14090405,3217.1,3216.5,0.15931868]
[1768835536478,0.1386711,3216.8,3215.8,3.90826073]
[1768835536679,0.1386711,3216.8,3216.0,0.15555]
[1768835537375,1.28898378,3216.7,3216.0,0.15927666]
[1768835539268,1.42765488,3216.7,3216.0,0.15927666]
[1768835539472,1.42765488,3216.5,3215.5,2.444]
[1768835540481,1.42765488,3216.5,3215.5,2.4474674]
[1768835540681,1.42765488,3216.5,3215.5,2.6030474]
[1768835541476,1.42765488,3216.5,3215.5,0.1590474]
[1768835542574,0.1386711,3216.5,3215.5,0.1590474]
[1768835542977,0.1386711,3216.5,3215.6,0.15557]
[1768835543682,0.1386711,3216.5,3215.7,0.15557]
[1768835545585,0.00223295,3217.1,3216.1,1.28898378]
[1768835545781,0.13841414,3217.1,3216.2,0.15554]
[1768835545986,0.13841414,3217.1,3216.3,0.15554]
[1768835546177,0.00223295,3217.1,3216.3,0.15554]
[1768835546376,0.00223295,3217.1,3216.4,0.15553]
[1768835548681,0.00223295,3217.1,3216.5,0.15553]
[1768835548874,0.13618119,3217.5,3216.5,0.15553]
[1768835549881,0.14020765,3217.5,3216.5,0.15553]
[1768835558182,1.28898378,3216.9,3216.5,0.15553]
[1768835558389,1.28898378,3217.1,3216.5,0.15553]
[1768835560482,1.43083175,3217.1,3216.5,0.15553]
[1768835562088,0.00402646,3217.5,3216.7,1.44450378]
[1768835562281,0.00402646,3217.5,3216.7,0.15552]
[1768835562492,0.00402646,3217.5,3216.9,0.15551]
[1768835562685,1.11163423,3218.4,3216.0,1.28898378]
[1768835562686,0.14184797,3218.4,3217.3,0.15549]
[1768835562880,0.14184797,3218.4,3217.4,0.15548]
[1768835563087,1.28898378,3218.5,3217.5,0.15548]
[1768835563291,1.28898378,3218.6,3217.5,0.15548]
[1768835563687,1.29268213,3218.6,3217.5,0.15548]
[1768835566899,1.28898378,3218.4,3217.5,0.15548]
[1768835568596,1.28898378,3218.1,3217.5,0.15548]
[1768835568794,0.14184797,3218.3,3217.5,0.15548]
[1768835568991,1.28898378,3218.2,3217.5,0.15548]
[1768835576014,1.28898378,3217.8,3216.8,0.15551]
[1768835576197,0.00369835,3218.6,3216.8,0.15551]
[1768835576198,1.28898378,3217.6,3216.8,0.15551]
[1768835576404,1.28898378,3217.2,3216.8,0.15551]
[1768835576600,1.28898378,3217.2,3216.3,2.61554]
[1768835576799,1.28898378,3217.4,3216.3,2.61554]
[1768835578104,1.28898378,3217.4,3216.4,0.15553]
[1768835579215,1.28898378,3217.4,3215.8,7.02922954]
[1768835579216,1.28898378,3216.9,3215.8,3.90826073]
[1768835579416,1.28898378,3216.9,3215.8,2.465]
[1768835579617,1.28898378,3216.7,3215.9,0.15556]
[1768835580707,0.14065229,3216.9,3215.9,0.15556]
[1768835581910,0.14065229,3216.9,3215.7,3.75398378]
[1768835582116,0.02413636,3643.8,3215.7,3.75398378]
[1768835582117,0.14065229,3217.9,3216.4,1.28898378]
[1768835582418,0.14065229,3217.9,3216.4,1.44451378]
[1768835582717,1.42963607,3217.9,3216.5,0.15553]
[1768835584919,0.14065229,3217.9,3216.5,0.15553]
[1768835585921,0.14065229,3217.9,3216.6,0.15552]
[1768835586524,0.14065229,3218.1,3216.8,0.15551]
[1768835589429,0.14065229,3218.1,3216.9,0.15551]
[1768835591028,0.14065229,3218.1,3216.4,1.29995702]
[1768835591227,0.14065229,3218.1,3217.0,0.1555]
[1768835594725,0.14065229,3218.1,3215.9,3.90826073]
[1768835594929,0.15912835,3218.6,3215.6,43.912]
[1768835594930,1.2891384,3216.7,3215.6,0.15557]
[1768835595527,1.42979069,3216.7,3215.6,0.15557]
[1768835596123,0.14065229,3216.2,3214.9,0.1556]
[1768835597024,0.14399314,3216.2,3214.9,0.15839154]
[1768835603136,0.14399314,3216.2,3215.0,0.1556]
[1768835617052,0.14399314,3216.2,3215.1,0.1556]
[1768835624258,0.14401165,3215.9,3214.1,0.1419483]
[1768835625255,0.14401165,3215.9,3214.1,0.39448968]
[1768835625651,0.14401165,3215.9,3214.7,0.15561]
[1768835626252,1.03061253,3215.8,3214.7,0.15561]
[1768835626458,0.14401165,3215.8,3214.7,0.15561]
[1768835626851,1.25898673,3216.2,3214.6,0.1419483]
[1768835627054,0.8865985,3216.1,3214.6,0.1419483]
[1768835627256,0.8865985,3216.0,3215.1,0.1556]
[1768835627555,0.1473525,3216.2,3215.1,0.1556]
[1768835627752,0.886008,3216.1,3215.1,0.1556]
[1768835627952,0.886008,3216.0,3215.1,0.1556]
[1768835628152,0.1473525,3216.2,3215.1,0.1556]
[1768835628453,0.88600266,3216.1,3215.1,0.1556]
[1768835628654,0.88600266,3216.0,3215.1,0.1556]
[1768835628954,0.1473525,3216.2,3215.1,0.1556]
[1768835629159,0.88599057,3216.1,3215.1,0.1556]
[1768835629361,0.88599057,3216.0,3215.1,0.1556]
[1768835629562,0.1473525,3216.2,3215.1,0.1556]
[1768835629757,0.8859827,3216.1,3215.1,0.1556]
[1768835630055,0.8859827,3216.0,3215.1,0.1556]
[1768835630255,0.00334085,3216.2,3215.2,0.15559]
[1768835630460,0.885977,3216.1,3214.6,0.1419483]
[1768835630656,0.00334085,3216.2,3214.9,0.1419483]
[1768835630960,0.00334085,3216.2,3215.4,0.15558]
[1768835632752,0.00334085,3216.2,3215.5,0.15558]
[1768835633057,0.00334085,3216.2,3215.2,0.14248611]
[1768835633259,1.24365336,3217.0,3215.2,0.14248611]
[1768835633561,0.88557407,3216.9,3215.3,0.14002445]
[1768835633863,0.88557407,3216.8,3216.0,0.15555]
[1768835634064,1.11163423,3217.3,3216.0,0.15555]
[1768835634364,0.88511287,3217.2,3216.1,0.15555]
[1768835634556,0.88511287,3217.1,3216.1,0.15555]
[1768835634757,0.00259655,3217.3,3216.1,0.15555]
[1768835634966,0.88509746,3217.2,3216.1,0.15555]
[1768835635261,0.88509746,3217.1,3216.1,0.15555]
[1768835635449,0.13461568,3217.3,3216.1,0.15555]
[1768835635653,0.8846612,3217.2,3216.1,0.15555]
[1768835635854,0.8846612,3217.1,3216.1,0.15555]
[1768835636051,0.13461568,3217.3,3216.1,0.15555]
[1768835636255,0.88433358,3217.2,3216.1,0.15555]
[1768835636452,0.13461568,3217.3,3216.1,0.15555]
[1768835636759,0.88433343,3217.2,3216.1,0.15555]
[1768835636960,0.13461568,3217.3,3216.1,0.15555]
[1768835637266,0.88433357,3217.2,3216.1,0.15555]
[1768835637563,0.13461568,3217.3,3216.1,0.15555]
[1768835637763,0.88406053,3217.2,3216.1,0.15555]
[1768835637963,0.13461568,3217.3,3216.1,0.15555]
[1768835638263,0.88406053,3217.2,3216.1,0.15555]
[1768835638566,0.13461568,3217.3,3216.1,0.15555]
[1768835638756,0.88382974,3217.2,3216.1,0.15555]
[1768835638956,0.13461568,3217.3,3216.1,0.15555]
[1768835639863,0.00259655,3217.3,3216.1,0.14037909]
[1768835640059,0.00259655,3217.3,3216.7,0.15552]
[1768835640368,0.13201913,3218.1,3217.0,0.1555]
[1768835641271,0.13500905,3218.1,3217.0,0.1555]
[1768835642863,0.00298992,3218.1,3216.9,0.14098995]
[1768835643068,0.00298992,3218.1,3217.4,0.15548]
[1768835643266,0.13201913,3218.7,3217.6,0.15547]
[1768835644268,0.13432633,3218.7,3217.6,0.15547]
[1768835645061,0.0023072,3218.7,3217.6,0.15547]
[1768835647573,0.0023072,3218.7,3217.7,0.15547]
[1768835647867,0.0023072,3218.7,3217.8,0.15546]
[1768835652178,1.28839064,3218.6,3217.8,0.15546]
[1768835652377,0.0023072,3218.7,3217.8,0.15546]
[1768835652570,1.28839064,3218.6,3217.8,0.15546]
[1768835655084,1.42040977,3218.3,3217.8,0.15546]
[1768835656575,0.0023072,3218.7,3217.8,0.15546]
[1768835656882,1.29069784,3218.7,3217.8,0.15546]
[1768835657796,0.0023072,3218.7,3218.0,0.15546]
[1768835658787,0.13201913,3219.4,3217.9,1.43087675]
[1768835658988,0.13201913,3219.8,3218.6,0.15543]
[1768835659190,1.28839064,3219.7,3218.6,0.15543]
[1768835659901,1.29104853,3219.7,3218.6,0.15543]
[1768835664201,1.28839064,3219.5,3218.6,0.15543]
[1768835667199,1.29104853,3219.7,3218.6,0.15543]
[1768835668407,1.28839064,3219.5,3218.6,0.15543]
[1768835671811,0.13132561,3219.6,3218.6,0.15543]
[1768835672009,1.28839064,3219.5,3218.6,0.15543]
[1768835674307,1.28839064,3219.3,3218.6,0.15543]
[1768835675913,0.13132561,3219.5,3218.6,0.15543]
[1768835676710,1.28839064,3219.4,3218.6,0.15543]
[1768835678912,1.29104853,3219.7,3218.6,0.15543]
[1768835679316,1.29104853,3219.7,3218.8,0.15541]
[1768835681311,0.00265789,3219.7,3218.6,1.28839064]
[1768835681612,1.42414836,3220.7,3219.4,0.15539]
[1768835681816,0.88067298,3220.6,3219.4,0.15539]
[1768835682116,2.16906362,3220.5,3219.4,0.15539]
[1768835682311,0.88067298,3220.4,3219.4,0.15539]
[1768835682619,0.00308522,3220.4,3219.7,0.15537]
[1768835682811,0.13575772,3220.7,3219.7,0.15537]
[1768835683323,1.28839064,3220.6,3219.7,0.15537]
[1768835683510,0.13575772,3220.7,3219.7,0.15537]
[1768835683714,1.42807923,3220.7,3219.7,0.15537]
[1768835683914,0.13968859,3220.7,3219.7,0.15537]
[1768835684122,0.00393087,3220.7,3219.7,0.15537]
[1768835685314,0.00393087,3220.7,3219.8,0.15537]
[1768835685825,1.29232151,3220.7,3219.8,0.15537]
[1768835686019,0.00393087,3220.7,3219.9,0.15536]
[1768835686322,0.00393087,3220.7,3220.1,0.15535]
[1768835686524,1.28839064,3220.6,3220.1,0.15535]
[1768835687125,1.29232151,3220.7,3220.1,0.15535]
[1768835690229,0.00393087,3220.7,3220.1,0.15535]
[1768835690722,1.28839064,3221.2,3220.1,0.15535]
[1768835690928,1.28839064,3221.2,3219.8,1.28839064]
[1768835690929,0.13575772,3221.5,3220.2,0.15535]
[1768835691128,1.28839064,3221.3,3220.3,0.15535]
[1768835691522,1.29178962,3221.3,3220.3,0.15535]
[1768835693532,1.29178962,3221.3,3220.4,0.15534]
[1768835693726,1.29178962,3221.3,3220.5,0.15534]
[1768835694927,1.28839064,3220.9,3220.5,0.15534]
[1768835695317,0.00339898,3221.3,3220.5,0.15534]
[1768835695522,1.28839064,3221.0,3220.5,0.15534]
[1768835698237,1.42923858,3221.0,3220.5,0.15534]
[1768835700936,1.28839064,3221.0,3220.5,0.15534]
[1768835702338,0.00339898,3221.3,3220.5,0.15534]
[1768835703338,0.14084794,3222.3,3221.0,0.15531]
[1768835703541,1.28839064,3222.1,3221.0,0.15531]
[1768835703736,1.28839064,3221.9,3221.0,0.15531]
[1768835704037,1.28839064,3221.8,3221.0,0.15531]
[1768835704242,1.28839064,3221.9,3221.0,0.15531]
[1768835704440,1.29076598,3221.9,3221.0,0.15531]
[1768835704642,0.14322328,3221.9,3221.0,0.15531]
[1768835704839,1.28839064,3221.6,3221.0,0.15531]
[1768835705141,0.14322328,3221.9,3221.0,0.15531]
[1768835705332,1.28839064,3221.7,3221.0,0.15531]
[1768835706939,1.28839064,3221.3,3220.1,40.8]
[1768835707139,1.28839064,3220.7,3220.4,0.15534]
[1768835707340,1.28839064,3220.9,3220.4,0.15534]
[1768835707735,0.14084794,3221.2,3220.4,0.15534]
[1768835707937,1.28839064,3221.3,3220.4,0.15534]
[1768835708733,1.28839064,3221.4,3220.4,0.15534]
[1768835708940,0.14084794,3221.5,3220.4,0.15534]
[1768835709839,0.14084794,3221.5,3219.7,0.15537]
[1768835710041,0.14084794,3220.8,3219.7,0.15537]
[1768835710740,0.14084794,3221.3,3219.4,0.00279272]
[1768835710941,0.8797938,3221.2,3219.6,0.14073158]
[1768835711141,0.14084794,3221.7,3219.6,0.14073158]
[1768835711344,1.0205254,3221.6,3219.6,0.14073158]
[1768835711646,0.14084794,3221.6,3219.6,0.14073158]
[1768835712437,0.14084794,3221.4,3219.6,0.14073158]
[1768835712645,0.14084794,3221.4,3220.3,0.15534]
[1768835713953,0.14084794,3221.4,3219.4,0.1435243]
[1768835714148,1.02235986,3221.3,3219.4,0.1435243]
[1768835714350,0.14084794,3221.1,3219.8,0.15537]
[1768835715548,1.02276628,3221.0,3219.8,0.15537]
[1768835715846,0.14084794,3220.9,3219.4,0.00279272]
[1768835716040,0.88191834,3220.8,3219.4,0.00279272]
[1768835716244,0.88191834,3220.8,3219.4,0.2989043]
[1768835716440,1.11163423,3221.2,3219.8,0.14073158]
[1768835716641,0.88175138,3221.1,3219.8,0.14073158]
[1768835716842,0.88175138,3221.0,3219.8,0.14073158]
[1768835717042,1.11163423,3221.5,3220.0,0.14073158]
[1768835717242,0.88169183,3221.4,3220.0,0.14073158]
[1768835717437,1.11163423,3221.6,3220.0,0.14073158]
[1768835717438,0.88169183,3221.3,3220.0,0.14073158]
[1768835717648,1.82360887,3221.8,3220.2,0.29608158]
[1768835717649,1.11163423,3221.7,3220.2,0.29608158]
[1768835717947,1.99212684,3221.7,3220.2,0.29608158]
[1768835718139,0.88049261,3221.6,3220.2,0.29608158]
[1768835718339,0.88049261,3221.5,3220.2,0.29608158]
[1768835718539,1.11400957,3221.9,3220.2,0.29608158]
[1768835718740,1.99449781,3221.9,3220.2,0.29608158]
[1768835720136,0.88048824,3221.8,3220.4,0.29607158]
[1768835720441,0.88048824,3221.7,3220.4,0.29607158]
[1768835720749,0.88048824,3221.6,3220.4,0.29607158]
[1768835721047,0.00237534,3221.9,3220.4,0.29607158]
[1768835721248,0.88049029,3221.8,3220.4,0.29607158]
[1768835721452,0.88049029,3221.7,3220.4,0.29607158]
[1768835721647,0.00237534,3221.9,3220.4,0.29607158]
[1768835721648,0.88049029,3221.6,3220.4,0.29607158]
[1768835721849,0.00237534,3221.9,3220.4,0.29607158]
[1768835722049,0.88048566,3221.8,3220.4,0.29607158]
[1768835722248,0.00237534,3221.9,3220.4,0.29607158]
[1768835722249,0.88048566,3221.7,3220.4,0.29607158]
[1768835722449,0.88048566,3221.6,3220.5,0.15533]
[1768835722647,0.00237534,3221.9,3220.5,0.15533]
[1768835722845,0.88048076,3221.8,3220.5,0.15533]
[1768835723045,0.88048076,3221.7,3220.5,0.15533]
[1768835723246,0.00237534,3221.9,3220.6,0.14067313]
[1768835723447,0.88047885,3221.8,3220.6,0.14067313]
[1768835723648,0.88047885,3221.7,3220.6,0.14067313]
[1768835723844,0.00237534,3221.9,3220.6,0.14067313]
[1768835724046,0.88047857,3221.8,3220.6,0.14067313]
[1768835724355,0.88047857,3221.7,3220.6,0.14067313]
[1768835724554,0.00237534,3221.9,3220.6,0.14067313]
[1768835724755,0.88048078,3221.8,3220.6,0.14067313]
[1768835725055,0.88048078,3221.7,3220.6,0.14067313]
[1768835725257,0.00237534,3221.9,3220.6,0.14067313]
[1768835725449,0.88046843,3221.8,3220.6,0.14067313]
[1768835725649,0.88046843,3221.7,3220.6,0.14067313]
[1768835725849,0.00237534,3221.9,3220.6,0.14067313]
[1768835726051,0.88046777,3221.8,3220.6,0.14067313]
[1768835726358,0.88046777,3221.7,3220.6,0.14067313]
[1768835726556,0.00237534,3221.9,3220.6,0.14067313]
[1768835726755,0.88046028,3221.8,3220.6,0.29600313]
[1768835726960,0.88046028,3221.7,3220.6,0.29600313]
[1768835727150,0.00237534,3221.9,3220.6,0.29600313]
[1768835727346,0.88045616,3221.8,3220.6,0.14067313]
[1768835727554,0.00466099,3221.5,3220.6,0.14067313]
[1768835728249,0.00466099,3221.5,3221.0,0.15531]
[1768835728752,0.00237534,3221.9,3221.0,0.15531]
[1768835738966,0.00237534,3221.9,3220.9,0.00466099]
[1768835739860,0.00237534,3221.9,3220.5,0.15533]
[1768835740259,0.87982784,3221.8,3220.5,0.15533]
[1768835740565,0.13943062,3221.9,3220.5,0.15533]
[1768835740767,0.8798329,3221.8,3220.5,0.15533]
[1768835740958,0.13943062,3221.9,3220.5,0.15533]
[1768835741160,0.87983877,3221.8,3220.5,0.15533]